bitfinex/quotes_ETHUSD_20240816
["timestamp","ask_amount","ask_price","bid_price","bid_amount"]
[1723781055082,2.374,2587.4,2587.0,36.93274]
[1723781055533,22.0774,2587.6,2587.0,36.93274]
[1723781055852,0.21310386,2587.5,2587.0,36.93274]
[1723781056164,22.0774,2587.6,2587.0,36.93274]
[1723781056336,0.21313222,2587.5,2587.0,36.93274]
[1723781056532,22.0774,2587.6,2587.0,36.93274]
[1723781056845,0.21315042,2587.5,2587.0,36.93274]
[1723781057047,2.3074,2587.6,2587.0,36.93274]
[1723781057249,0.21316509,2587.5,2587.0,36.93274]
[1723781057476,0.2131701,2587.4,2587.0,35.0]
[1723781057776,5.58469,2587.6,2587.0,35.0]
[1723781057777,0.21319899,2587.3,2587.0,35.0]
[1723781057987,4.26778,2587.5,2587.0,35.0]
[1723781058165,0.2132371,2587.4,2587.0,35.0]
[1723781058484,4.26778,2587.5,2587.0,35.0]
[1723781058669,0.21322912,2587.4,2587.0,35.0]
[1723781058859,4.26778,2587.5,2587.0,35.0]
[1723781059057,0.21327358,2587.4,2587.0,35.0]
[1723781059936,4.26778,2587.5,2587.0,35.0]
[1723781060251,0.2133054,2587.4,2587.0,35.0]
[1723781060445,0.2133054,2587.3,2587.0,35.0]
[1723781060643,4.26778,2587.5,2587.0,35.0]
[1723781060864,0.21336144,2587.4,2587.0,35.0]
[1723781061058,0.21336144,2587.3,2587.0,35.0]
[1723781061380,4.26778,2587.5,2587.0,35.0]
[1723781061553,0.21336595,2587.4,2587.0,35.0]
[1723781061876,0.21336595,2587.3,2587.0,35.0]
[1723781062062,4.26778,2587.5,2587.0,35.0]
[1723781062272,0.21335171,2587.4,2587.0,35.0]
[1723781062571,4.26778,2587.5,2587.0,35.0]
[1723781062876,0.21334144,2587.4,2587.0,35.0]
[1723781063082,4.26778,2587.5,2587.0,35.0]
[1723781063239,0.21335012,2587.4,2587.0,35.0]
[1723781063444,4.26778,2587.5,2587.0,35.0]
[1723781063680,0.21334792,2587.4,2587.0,35.0]
[1723781063852,4.26778,2587.5,2587.0,35.0]
[1723781064059,0.21334962,2587.4,2587.0,35.0]
[1723781064260,4.26778,2587.5,2587.0,35.0]
[1723781064460,0.21334412,2587.4,2587.0,35.0]
[1723781064661,4.26778,2587.5,2587.0,35.0]
[1723781064874,0.21335388,2587.4,2587.0,35.0]
[1723781065080,4.26778,2587.5,2587.0,35.0]
[1723781065271,0.21334202,2587.4,2587.0,35.0]
[1723781065470,0.21335671,2587.3,2587.0,35.0]
[1723781065673,4.26778,2587.5,2587.0,35.0]
[1723781065878,0.21335797,2587.4,2587.0,35.0]
[1723781066045,0.21335797,2587.3,2587.0,35.0]
[1723781066250,4.26778,2587.5,2587.0,35.0]
[1723781066450,0.21334438,2587.4,2587.0,35.0]
[1723781066762,4.26778,2587.5,2587.0,35.0]
[1723781066962,0.21334333,2587.4,2587.0,35.0]
[1723781067283,0.21334333,2587.3,2587.0,35.0]
[1723781067450,4.26778,2587.5,2587.0,35.0]
[1723781067788,0.21336963,2587.4,2587.0,35.0]
[1723781069459,0.21335383,2587.3,2587.0,35.0]
[1723781069661,2.3907,2587.7,2587.2,1.345]
[1723781069860,0.21329559,2587.6,2587.2,1.345]
[1723781070051,0.21329559,2587.5,2587.2,1.345]
[1723781070248,2.3907,2587.7,2587.3,35.0]
[1723781070572,2.3907,2587.5,2587.3,35.0]
[1723781070755,0.21330707,2587.4,2587.3,35.0]
[1723781073371,0.21331914,2587.4,2587.3,35.0]
[1723781073771,0.21331914,2587.4,2587.2,4.23874]
[1723781074096,9.85520682,2587.8,2587.2,4.23874]
[1723781074412,0.21330904,2587.7,2587.3,35.0]
[1723781074611,0.21330904,2587.6,2587.3,35.0]
[1723781074816,0.21330904,2587.5,2587.3,35.0]
[1723781075182,0.21330904,2587.4,2587.3,35.0]
[1723781081640,0.21318617,2587.4,2587.3,35.0]
[1723781081935,0.21319111,2587.4,2587.3,35.0]
[1723781083392,9.85520682,2587.8,2587.3,35.0]
[1723781083647,3.92509788,2587.7,2587.3,35.0]
[1723781083948,0.21316515,2587.6,2587.3,37.4924]
[1723781084152,0.21316515,2587.5,2587.3,37.4924]
[1723781084440,0.21316515,2587.4,2587.3,35.0]
[1723781084746,0.21316515,2587.4,2587.3,36.93251]
[1723781085944,0.21318681,2587.4,2587.3,36.93251]
[1723781090437,0.21317992,2587.4,2587.3,36.93251]
[1723781091145,0.21317992,2587.4,2587.3,39.38561]
[1723781091303,0.21317992,2587.4,2587.3,43.21164748]
[1723781091619,0.21317992,2587.4,2587.3,45.22695154]
[1723781092131,0.21317992,2587.4,2587.3,43.21164748]
[1723781092348,0.21317992,2587.4,2587.3,45.22698048]
[1723781094589,7.40320682,2587.8,2587.5,1.93235]
[1723781094719,0.21325846,2587.7,2587.5,1.93235]
[1723781094915,0.21325846,2587.6,2587.5,1.93235]
[1723781095119,0.21325846,2587.6,2587.5,36.93235]
[1723781095965,0.21325846,2587.6,2587.5,44.62293252]
[1723781096150,3.71389963,2588.4,2588.0,1.93196]
[1723781096319,0.21320796,2588.3,2588.0,1.93196]
[1723781096519,0.21320796,2588.2,2588.0,1.93196]
[1723781096833,0.21320796,2588.1,2588.0,1.93196]
[1723781097744,0.21316334,2588.1,2588.0,1.93196]
[1723781097949,0.21315194,2588.1,2588.0,1.93196]
[1723781098146,2.4841,2588.6,2588.0,1.93196]
[1723781098347,0.21316128,2588.5,2588.0,1.93196]
[1723781098659,2.4841,2588.6,2588.0,1.93196]
[1723781098832,0.21316453,2588.5,2588.0,1.93196]
[1723781099032,0.21316453,2588.4,2588.0,1.93196]
[1723781099246,0.21316453,2588.3,2588.0,1.93196]
[1723781099452,0.21316453,2588.2,2588.0,1.93196]
[1723781099647,2.4841,2588.6,2588.0,1.93196]
[1723781099862,0.21315975,2588.5,2588.0,1.93196]
[1723781100064,0.21315975,2588.4,2588.1,1.93191]
[1723781100278,3.7130638,2588.7,2588.1,2.3266]
[1723781100279,2.4523,2588.7,2588.1,2.3266]
[1723781100428,0.21315767,2588.6,2588.2,35.0]
[1723781100627,0.21315767,2588.5,2588.2,35.0]
[1723781100840,0.21315767,2588.4,2588.2,35.0]
[1723781101027,0.21315767,2588.3,2588.2,35.0]
[1723781101456,4.38378,2588.7,2588.2,35.0]
[1723781101976,0.21314806,2588.6,2588.2,38.27683]
[1723781102275,0.21314806,2588.5,2588.3,1.93174]
[1723781102475,0.1269623,2588.8,2588.3,1.93174]
[1723781102682,0.2131099,2588.7,2588.3,1.93174]
[1723781102891,0.2131099,2588.6,2588.3,1.93174]
[1723781103068,0.1269623,2588.8,2588.3,1.93174]
[1723781103240,0.21311402,2588.7,2588.3,1.93174]
[1723781103436,2.54211402,2588.6,2588.2,35.0]
[1723781103692,0.21311402,2588.5,2588.2,35.0]
[1723781105159,3.834,2588.4,2587.6,3.06118386]
[1723781105391,2.489,2588.1,2587.3,0.80918386]
[1723781105618,2.14510402,2588.0,2587.4,1.93243]
[1723781105896,0.21326202,2587.9,2587.5,3.27735]
[1723781106042,2.489,2588.1,2587.5,3.27735]
[1723781106241,2.489,2588.1,2587.6,1.93229]
[1723781106242,0.21323983,2588.0,2587.6,1.93229]
[1723781106488,2.489,2588.1,2587.6,1.93229]
[1723781106655,0.21322709,2588.0,2587.7,35.0]
[1723781106864,2.489,2588.1,2587.7,35.0]
[1723781107055,0.21322792,2588.0,2587.7,35.0]
[1723781107237,2.489,2588.1,2587.7,35.0]
[1723781107561,0.21323864,2588.0,2587.7,35.0]
[1723781107744,2.489,2588.1,2587.7,35.0]
[1723781107972,0.21322868,2588.0,2587.7,35.0]
[1723781108156,2.489,2588.1,2587.7,35.0]
[1723781108359,0.2132287,2588.0,2587.7,35.0]
[1723781108568,0.2132287,2587.9,2587.7,35.0]
[1723781108787,0.21325347,2587.8,2587.7,35.0]
[1723781108945,4.42093,2588.1,2587.7,35.0]
[1723781109290,0.21325122,2588.0,2587.7,35.0]
[1723781109461,0.21325122,2587.9,2587.7,35.0]
[1723781109660,0.21325122,2587.8,2587.7,35.0]
[1723781109865,4.42093,2588.1,2587.7,35.0]
[1723781110059,0.21324427,2588.0,2587.7,35.0]
[1723781110323,0.21324427,2587.9,2587.7,35.0]
[1723781110449,4.42093,2588.1,2587.7,35.0]
[1723781110649,0.21324483,2588.0,2587.7,35.0]
[1723781110890,0.21324483,2587.9,2587.7,35.0]
[1723781111103,5.60334368,2588.1,2587.7,35.0]
[1723781111295,0.21324784,2588.0,2587.7,35.0]
[1723781111464,0.21324784,2587.9,2587.5,1.345]
[1723781111794,0.21324784,2587.8,2587.5,1.345]
[1723781112000,5.60334368,2588.1,2587.6,35.0]
[1723781112197,0.21324888,2588.0,2587.6,35.0]
[1723781112399,0.21324888,2587.9,2587.6,35.0]
[1723781112699,0.21324888,2587.8,2587.6,36.93228]
[1723781112916,2.489,2588.1,2587.7,1.345]
[1723781113118,0.21322472,2588.0,2587.7,1.345]
[1723781113324,0.21322472,2587.9,2587.7,1.345]
[1723781113618,2.489,2588.1,2587.7,1.345]
[1723781113619,2.489,2588.1,2587.8,35.0]
[1723781113812,0.21323493,2588.0,2587.8,35.0]
[1723781114115,2.489,2588.1,2587.8,35.0]
[1723781114116,0.21323493,2587.9,2587.8,35.0]
[1723781115985,0.21323493,2587.9,2587.8,36.93214]
[1723781116319,9.85500682,2588.2,2587.8,36.93214]
[1723781116481,0.21320812,2588.1,2587.9,1.93206]
[1723781116714,0.21320812,2588.0,2587.9,1.93206]
[1723781117099,0.21320812,2588.0,2587.9,36.93206]
[1723781117813,2.2579,2588.4,2587.9,36.93206]
[1723781118015,0.21319869,2588.3,2587.9,36.93206]
[1723781118213,9.80070682,2588.6,2588.1,1.345]
[1723781118413,9.80070682,2588.6,2588.1,3.27685]
[1723781118414,0.21316791,2588.5,2588.1,3.27685]
[1723781118616,0.21316791,2588.4,2588.1,1.93185]
[1723781118778,0.21316791,2588.3,2588.1,1.93185]
[1723781118975,9.80070682,2588.6,2588.1,1.93185]
[1723781119204,0.21315285,2588.5,2588.1,1.93185]
[1723781119403,0.21315285,2588.4,2588.1,1.93185]
[1723781119578,0.21315285,2588.3,2588.1,1.93185]
[1723781119780,9.80070682,2588.6,2588.1,1.93185]
[1723781120003,0.21315368,2588.5,2588.1,1.93185]
[1723781120175,0.21315368,2588.4,2588.1,1.93185]
[1723781120381,0.21315368,2588.3,2587.9,5.63836]
[1723781120604,2.61065368,2588.2,2588.0,35.0]
[1723781120803,0.21315368,2588.1,2588.0,35.0]
[1723781121131,2.3975,2588.2,2588.0,36.93199]
[1723781121446,7.40320682,2588.6,2588.0,36.93199]
[1723781121447,2.3975,2588.5,2588.0,36.93199]
[1723781121651,0.21316651,2588.4,2588.0,35.0]
[1723781121936,0.21316651,2588.3,2588.0,35.0]
[1723781122098,2.3975,2588.5,2588.0,35.0]
[1723781122099,0.21316651,2588.2,2588.0,35.0]
[1723781122302,0.21316651,2588.1,2588.0,35.0]
[1723781122495,0.21318943,2588.4,2588.0,35.0]
[1723781122836,0.21318943,2588.3,2588.0,35.0]
[1723781123033,0.21318943,2588.2,2588.0,36.93198]
[1723781123339,0.21318943,2588.1,2588.0,36.93198]
[1723781123699,2.3975,2588.5,2588.0,36.93198]
[1723781123900,0.21316751,2588.4,2588.0,36.93198]
[1723781124113,0.21316751,2588.3,2588.0,36.93198]
[1723781124314,0.21316751,2588.2,2588.0,36.93198]
[1723781124509,2.3975,2588.5,2588.0,36.93198]
[1723781124831,2.3975,2588.5,2588.0,35.0]
[1723781124832,0.21316086,2588.4,2588.0,35.0]
[1723781125030,0.21316086,2588.3,2588.0,36.93198]
[1723781125328,0.21316086,2588.2,2588.0,36.93198]
[1723781125531,0.21316086,2588.1,2588.0,36.93198]
[1723781126038,0.21316086,2588.4,2588.0,36.93198]
[1723781126235,0.21316086,2588.3,2588.0,36.93198]
[1723781126541,0.2131654,2588.2,2588.0,36.93198]
[1723781126702,2.3975,2588.5,2588.0,36.93198]
[1723781126902,0.21316324,2588.4,2588.0,36.93198]
[1723781127103,0.21316324,2588.3,2588.0,36.93198]
[1723781127326,0.21316324,2588.2,2588.0,36.93198]
[1723781127527,0.21316324,2588.1,2588.0,36.93198]
[1723781127715,2.3975,2588.5,2588.0,36.93198]
[1723781127716,0.21316324,2588.4,2588.0,36.93198]
[1723781127912,0.21316324,2588.3,2588.0,36.93198]
[1723781128139,0.21316324,2588.2,2588.0,36.93198]
[1723781128343,0.21316324,2588.1,2588.0,36.93198]
[1723781128542,2.3975,2588.5,2588.0,36.93198]
[1723781128543,2.3975,2588.5,2588.1,1.93191]
[1723781128742,0.21317823,2588.4,2588.1,1.93191]
[1723781128947,0.21317823,2588.3,2588.1,1.93191]
[1723781129113,0.21317823,2588.2,2588.1,1.93191]
[1723781129604,0.21317823,2588.2,2588.1,36.93191]
[1723781130434,2.3975,2588.5,2588.1,36.93191]
[1723781130746,0.21315898,2588.4,2588.1,36.93191]
[1723781130936,0.21315898,2588.3,2588.1,36.93191]
[1723781131109,0.21315941,2588.2,2588.1,36.93191]
[1723781131804,0.28893803,2588.2,2588.1,36.93191]
[1723781132711,0.28893803,2588.2,2588.1,1.93191]
[1723781133442,0.28893803,2588.2,2588.1,36.93191]
[1723781135046,0.28895701,2588.2,2588.1,36.93191]
[1723781136379,0.28895701,2588.2,2588.1,1.93191]
[1723781136740,0.28895701,2588.2,2588.1,36.93191]
[1723781138076,2.64875701,2588.2,2588.1,35.0]
[1723781139357,0.28895701,2588.2,2588.1,35.0]
[1723781142304,0.28895701,2588.2,2587.6,1.21705162]
[1723781142305,1.93201,2588.0,2587.4,0.80918386]
[1723781142510,1.93201,2588.0,2587.3,5.55875162]
[1723781142511,4.12569422,2587.9,2587.3,2.74168386]
[1723781142680,0.21317839,2587.8,2587.4,36.3435869]
[1723781142999,0.28918412,2587.7,2587.4,36.93244]
[1723781143161,0.21317839,2587.6,2587.4,36.93244]
[1723781143359,0.07600573,2587.7,2587.4,36.93244]
[1723781143360,0.21327467,2587.5,2587.4,36.93244]
[1723781143695,0.28927368,2587.5,2587.4,38.27600525]
[1723781143898,0.28927368,2587.5,2587.4,36.93244]
[1723781144054,0.28927368,2587.5,2587.4,38.27601727]
[1723781144256,2.2983,2587.9,2587.5,1.93233]
[1723781144456,2.2983,2587.9,2587.5,3.27733]
[1723781144661,0.21325698,2587.8,2587.5,3.27733]
[1723781144980,0.28904432,2587.7,2587.5,3.27733]
[1723781145302,9.68210682,2588.2,2587.6,3.27569525]
[1723781145458,9.68210682,2588.2,2587.6,1.93229]
[1723781145459,0.28900008,2588.1,2587.6,1.93229]
[1723781145660,0.21321577,2588.0,2587.6,1.93229]
[1723781145859,0.21321577,2587.9,2587.6,1.93229]
[1723781146055,0.28900008,2587.8,2587.6,1.93229]
[1723781146285,0.21321577,2587.7,2587.6,1.93229]
[1723781146496,7.40320682,2588.2,2587.9,1.93206]
[1723781146668,0.28898193,2588.1,2587.9,1.93206]
[1723781146868,2.43118431,2588.1,2588.0,35.0]
[1723781147073,2.6443929,2588.1,2588.0,35.0]
[1723781149504,0.2889929,2588.1,2588.0,42.62208]
[1723781149659,3.84083293,2588.8,2588.2,1.93181]
[1723781149861,0.28641016,2588.7,2588.3,3.27676]
[1723781150062,0.21313432,2588.6,2588.3,3.27676]
[1723781150294,0.21313432,2588.5,2588.3,3.27676]
[1723781150495,0.28641016,2588.4,2588.3,3.27676]
[1723781150735,0.21313432,2588.4,2588.3,3.27676]
[1723781151100,0.21313432,2588.4,2588.3,4.61982199]
[1723781151295,0.1269623,2588.8,2588.3,4.61982199]
[1723781151530,0.28638343,2588.7,2588.3,3.27676]
[1723781151840,0.21310759,2588.6,2588.3,3.27676]
[1723781152026,0.21310759,2588.5,2588.3,3.27676]
[1723781152222,0.21310759,2588.4,2588.3,1.93176]
[1723781152557,0.07327584,2588.4,2588.3,1.93176]
[1723781152846,0.28639326,2588.4,2588.3,1.93176]
[1723781153053,0.21311742,2588.4,2588.3,1.93176]
[1723781153431,0.1269623,2588.8,2588.3,2.48176]
[1723781153606,0.21310822,2588.7,2588.3,1.93176]
[1723781153813,0.21310822,2588.6,2588.3,1.93176]
[1723781154041,0.21310822,2588.5,2588.3,1.93176]
[1723781154196,0.1269623,2588.8,2588.3,1.93176]
[1723781154197,0.21310822,2588.4,2588.3,1.93176]
[1723781154397,0.07344264,2588.4,2588.3,2.48176]
[1723781154605,0.1269623,2588.8,2588.3,2.48176]
[1723781154939,0.07344264,2588.7,2588.3,2.48176]
[1723781155145,0.21311072,2588.6,2588.3,2.48176]
[1723781155306,0.28655336,2588.5,2588.3,2.48176]
[1723781155507,0.07344264,2588.5,2588.3,2.48176]
[1723781155714,0.1269623,2588.8,2588.3,2.48176]
[1723781156047,0.28655372,2588.7,2588.3,2.48176]
[1723781156244,0.21311108,2588.6,2588.3,2.48176]
[1723781156423,0.21311108,2588.5,2588.3,2.48176]
[1723781156605,0.1269623,2588.8,2588.3,2.48176]
[1723781156804,0.07344264,2588.4,2588.3,2.48176]
[1723781157032,2.4527,2588.5,2588.3,2.48176]
[1723781157232,2.4527,2588.7,2588.3,2.48176]
[1723781157433,0.07344264,2588.4,2588.3,2.48176]
[1723781157712,2.4527,2588.7,2588.3,2.48176]
[1723781157933,0.28655425,2588.6,2588.3,2.48176]
[1723781158143,0.21311161,2588.5,2588.3,2.48176]
[1723781158347,2.4527,2588.7,2588.4,1.93168]
[1723781158557,0.28655459,2588.6,2588.4,1.93168]
[1723781158721,0.21311195,2588.5,2588.3,0.55]
[1723781159048,2.4527,2588.7,2588.2,1.93181]
[1723781159249,0.07344264,2588.4,2588.2,1.93181]
[1723781159448,2.4527,2588.7,2588.2,1.93181]
[1723781159449,0.07344264,2588.3,2588.2,1.93181]
[1723781159666,2.4527,2588.7,2588.2,2.48181]
[1723781159960,0.28656859,2588.6,2588.2,2.48181]
[1723781160169,0.21312595,2588.5,2588.2,2.48181]
[1723781160323,0.21312595,2588.5,2588.1,3.35975916]
[1723781160528,2.468,2588.3,2588.0,36.93198]
[1723781160734,2.468,2588.3,2587.8,5.11359386]
[1723781160735,0.21312595,2588.2,2587.8,1.93211]
[1723781161036,0.21312595,2588.1,2587.8,3.27711]
[1723781161344,0.07364887,2588.1,2587.8,3.27711]
[1723781161528,0.21320225,2588.0,2587.9,1.93206]
[1723781161735,0.07360944,2588.0,2587.9,1.93206]
[1723781161961,2.468,2588.3,2587.9,1.93206]
[1723781162269,0.21317823,2588.2,2587.9,1.93206]
[1723781162452,2.468,2588.3,2587.9,1.93206]
[1723781162638,2.468,2588.3,2588.0,35.0]
[1723781162639,0.28678847,2588.2,2588.0,35.0]
[1723781162826,0.21317903,2588.1,2588.0,35.0]
[1723781163466,0.28678847,2588.1,2588.0,35.0]
[1723781163834,0.28678436,2588.1,2588.0,36.345]
[1723781164436,0.28678436,2588.1,2588.0,35.0]
[1723781165850,0.28680029,2588.1,2588.0,35.0]
[1723781166189,0.28680019,2588.1,2588.0,35.0]
[1723781166832,0.07360944,2588.1,2588.0,35.0]
[1723781167031,2.468,2588.3,2588.0,35.0]
[1723781167032,0.21320309,2588.2,2588.0,35.0]
[1723781167301,0.21320309,2588.1,2588.0,35.0]
[1723781167570,0.28677309,2588.1,2588.0,35.0]
[1723781167990,2.64867309,2588.1,2587.7,1.93219]
[1723781168277,0.21323038,2588.0,2587.7,1.93219]
[1723781168479,0.28672761,2587.9,2587.8,35.0]
[1723781169579,0.07349723,2587.9,2587.8,35.0]
[1723781169944,0.28671709,2587.9,2587.8,35.0]
[1723781170293,0.07349723,2587.9,2587.8,35.0]
[1723781170585,2.3619,2588.1,2587.8,35.0]
[1723781170794,0.07346693,2587.9,2587.8,35.0]
[1723781170951,0.21319809,2587.9,2587.8,35.0]
[1723781171156,0.07346693,2587.9,2587.8,35.0]
[1723781171396,2.3619,2588.1,2587.8,35.0]
[1723781171684,0.21321163,2588.0,2587.8,35.0]
[1723781171992,0.07346086,2587.9,2587.8,35.0]
[1723781172372,2.3619,2588.1,2587.8,35.0]
[1723781172542,0.07346086,2587.9,2587.8,35.0]
[1723781172942,2.3619,2588.1,2587.8,35.0]
[1723781173206,0.28666053,2588.0,2587.8,35.0]
[1723781173359,0.07346086,2588.0,2587.8,35.0]
[1723781173878,0.21322241,2587.9,2587.8,35.0]
[1723781174097,2.3619,2588.1,2587.8,35.0]
[1723781174410,0.28668846,2588.0,2587.8,35.0]
[1723781174557,0.2132276,2587.9,2587.8,35.0]
[1723781174763,0.28669149,2587.9,2587.8,35.0]
[1723781178000,0.28668286,2587.9,2587.8,35.0]
[1723781178403,0.28668238,2587.9,2587.8,35.0]
[1723781180654,0.07346389,2587.9,2587.8,35.0]
[1723781181021,0.21324004,2587.9,2587.8,35.0]
[1723781181319,0.2848406,2587.9,2587.8,35.0]
[1723781181882,2.6871406,2587.9,2587.8,35.0]
[1723781182275,2.68714027,2587.9,2587.8,35.0]
[1723781185005,2.68714027,2587.9,2587.5,1.93234]
[1723781185318,0.21323971,2587.8,2587.5,1.93234]
[1723781185642,0.07153383,2587.7,2587.6,35.0]
[1723781185802,0.28477354,2587.7,2587.6,35.0]
[1723781186005,0.21323971,2587.7,2587.6,35.0]
[1723781186226,0.07153383,2587.7,2587.6,35.0]
[1723781186598,0.21324097,2587.7,2587.6,35.0]
[1723781186797,0.07153383,2587.7,2587.6,35.0]
[1723781187000,0.2847748,2587.7,2587.6,35.0]
[1723781187194,0.21324097,2587.7,2587.6,35.0]
[1723781187522,0.2847748,2587.7,2587.6,35.0]
[1723781190388,0.28477693,2587.7,2587.6,35.0]
[1723781190931,0.2847781,2587.7,2587.6,35.0]
[1723781195018,0.2847781,2587.7,2587.6,36.93229]
[1723781196934,0.2847781,2587.7,2587.6,35.0]
[1723781198055,0.2847781,2587.7,2587.6,41.27738]
[1723781198414,0.28474348,2587.7,2587.6,41.27738]
[1723781198953,0.28474348,2587.7,2587.6,42.62072318]
[1723781199416,0.28474348,2587.7,2587.6,43.17072318]
[1723781199854,0.21320965,2587.7,2587.6,45.18572991]
[1723781200618,10.67967682,2588.7,2587.7,2.4128]
[1723781200619,3.71345753,2588.4,2587.7,2.4128]
[1723781200814,2.3881623,2588.8,2588.3,1.93176]
[1723781201116,0.21310819,2588.7,2588.5,1.93154]
[1723781201343,0.21310819,2588.6,2588.5,1.93154]
[1723781201732,0.21310819,2588.6,2588.5,36.93154]
[1723781201918,0.1269623,2588.8,2588.7,3.86294]
[1723781202255,0.1269623,2588.8,2588.7,11.46678483]
[1723781202416,0.00395657,2588.8,2588.7,12.3544554]
[1723781202617,0.00395657,2588.8,2588.7,11.54947707]
[1723781202835,0.00395657,2588.8,2588.7,12.75818023]
[1723781203064,0.00395657,2588.8,2588.7,3.35693707]
[1723781203362,0.00395657,2588.8,2588.5,36.9316]
[1723781203517,0.00395657,2588.8,2588.5,35.0]
[1723781203717,0.21153227,2588.7,2588.1,1.93189]
[1723781203917,0.21153227,2588.6,2588.1,1.93189]
[1723781204233,0.21153227,2588.6,2588.0,1.345]
[1723781204234,1.58815223,2588.8,2588.2,36.93183]
[1723781204433,0.21157588,2588.7,2588.2,36.93183]
[1723781204757,0.21157588,2588.6,2588.2,36.93183]
[1723781204930,0.00395657,2588.8,2588.2,36.93183]
[1723781205135,0.21157356,2588.7,2588.2,36.93183]
[1723781205326,0.00395657,2588.8,2588.3,1.93176]
[1723781205528,0.21156023,2588.7,2588.3,1.93176]
[1723781205755,0.00395657,2588.8,2588.3,1.93176]
[1723781205943,0.21155239,2588.7,2588.3,1.93176]
[1723781206140,0.00395657,2588.8,2588.3,1.93176]
[1723781206371,0.06499003,2588.6,2588.3,1.93176]
[1723781206544,0.00395657,2588.8,2588.3,1.93176]
[1723781206891,0.06499003,2588.5,2588.3,1.93176]
[1723781207019,0.00395657,2588.8,2588.3,1.93176]
[1723781207218,0.06499003,2588.4,2588.3,1.93176]
[1723781207523,0.00395657,2588.8,2588.3,1.93176]
[1723781207730,0.21155594,2588.7,2588.3,1.93176]
[1723781207928,0.43628423,2588.8,2588.2,35.0]
[1723781208130,0.21156559,2588.7,2588.2,36.93184]
[1723781208336,0.43628423,2588.8,2588.2,36.93184]
[1723781208621,0.06500523,2588.6,2588.2,36.93184]
[1723781208852,0.00395657,2588.8,2588.2,36.93184]
[1723781209017,0.21155751,2588.7,2588.2,36.93184]
[1723781209220,0.06500523,2588.7,2588.2,36.93184]
[1723781209761,0.00395657,2588.8,2588.2,36.93184]
[1723781209965,0.06500523,2588.6,2588.2,36.93184]
[1723781210172,0.00395657,2588.8,2588.2,36.93184]
[1723781210336,0.21156921,2588.7,2588.2,36.93184]
[1723781210537,0.06500523,2588.5,2588.2,36.93184]
[1723781210846,0.00395657,2588.8,2588.2,36.93184]
[1723781211041,0.21157163,2588.7,2588.2,36.93184]
[1723781211361,0.06500523,2588.7,2588.2,36.93184]
[1723781211569,0.06500523,2588.7,2588.2,35.0]
[1723781211570,0.21157502,2588.6,2588.2,35.0]
[1723781211870,2.36768423,2588.8,2588.2,35.0]
[1723781211871,2.3135,2588.5,2588.2,35.0]
[1723781212167,4.24512,2588.5,2587.7,2.7373571]
[1723781212324,0.27660718,2588.4,2587.4,2.01493721]
[1723781212525,1.93185,2588.2,2587.5,1.93236]
[1723781212752,0.21160195,2588.1,2587.6,35.0]
[1723781214369,0.21168909,2588.0,2587.6,35.0]
[1723781214571,1.93185,2588.2,2587.6,35.0]
[1723781214871,0.06495353,2587.9,2587.6,35.0]
[1723781215077,2.4699,2588.0,2587.6,35.0]
[1723781215279,0.06495353,2587.8,2587.6,35.0]
[1723781215434,2.4699,2588.0,2587.6,35.0]
[1723781216138,0.27648868,2587.9,2587.6,35.0]
[1723781216331,0.06479543,2587.9,2587.6,35.0]
[1723781217330,2.25033497,2587.9,2587.6,35.0]
[1723781217530,0.21171305,2587.8,2587.6,35.0]
[1723781217733,2.25033497,2587.9,2587.6,35.0]
[1723781217958,0.06476806,2587.7,2587.6,35.0]
[1723781218277,2.18553954,2587.9,2587.6,35.0]
[1723781218433,0.06476806,2587.7,2587.6,35.0]
[1723781218625,2.4699,2588.0,2587.6,35.0]
[1723781218825,0.06476806,2587.7,2587.6,35.0]
[1723781219063,3.65039568,2588.0,2587.6,35.0]
[1723781219226,0.06476806,2587.7,2587.6,35.0]
[1723781219421,3.65039568,2588.0,2587.6,35.0]
[1723781219648,0.06476806,2587.7,2587.6,35.0]
[1723781220327,4.4019,2588.0,2587.6,35.0]
[1723781220527,0.06476806,2587.7,2587.4,1.93243]
[1723781220776,4.4019,2588.0,2587.4,1.93243]
[1723781220962,0.06472243,2587.6,2587.5,35.0]
[1723781221366,4.4019,2588.0,2587.5,35.0]
[1723781221547,0.27642162,2587.9,2587.5,35.0]
[1723781221744,0.06472243,2587.9,2587.5,35.0]
[1723781222782,0.21171509,2587.8,2587.5,35.0]
[1723781222956,0.06472243,2587.9,2587.5,35.0]
[1723781223175,4.4019,2588.0,2587.5,35.0]
[1723781223479,0.21170241,2587.9,2587.5,35.0]
[1723781223651,0.06472243,2587.9,2587.5,35.0]
[1723781224150,0.21170154,2587.8,2587.5,35.0]
[1723781224476,4.4019,2588.0,2587.5,35.0]
[1723781224679,0.06472243,2587.7,2587.5,35.0]
[1723781224865,4.4019,2588.0,2587.5,35.0]
[1723781225033,2.4699,2588.0,2587.6,1.93228]
[1723781225235,0.06472243,2587.9,2587.6,1.93228]
[1723781227537,0.06472243,2587.9,2587.7,35.0]
[1723781227854,7.40320682,2588.2,2587.8,1.93214]
[1723781228063,0.21165955,2588.1,2587.8,1.93214]
[1723781228248,7.40320682,2588.2,2587.8,1.93214]
[1723781228469,0.21164675,2588.1,2587.9,35.0]
[1723781228635,7.40320682,2588.2,2587.9,35.0]
[1723781228839,0.21165801,2588.1,2587.9,35.0]
[1723781229180,7.40320682,2588.2,2587.9,35.0]
[1723781229389,0.21168076,2588.1,2587.9,35.0]
[1723781229607,0.42336153,2588.1,2587.9,35.0]
[1723781229758,0.21168076,2588.1,2587.9,35.0]
[1723781233593,0.21168076,2588.1,2587.7,36.93219]
[1723781233805,0.21165944,2588.0,2587.7,36.93219]
[1723781233967,0.21168076,2588.1,2587.7,36.93219]